fUSD/lending_fUSD_20240613
["ID","MTS","AMOUNT","RATE_DAILY","PERIOD"]
[329353397,1718277034650,-293.27635079,0.00024109,2]
[329353399,1718277034670,-500.0,0.00024109,2]
[329353400,1718277034686,-177.00442924,0.00024109,2]
[329353401,1718277034717,-159.37391797,0.00024109,2]
[329353402,1718277034728,-267.35872174,0.00024109,2]
[329353403,1718277034741,-310.18857709,0.00024109,2]
[329353404,1718277034754,-435.05393294,0.00024109,2]
[329353405,1718277034768,-364.60959321,0.00024109,2]
[329353406,1718277034781,-311.53751254,0.00024109,2]
[329353407,1718277034792,-455.00002696,0.00024109,2]
[329353408,1718277034805,-197.1454293,0.00024109,2]
[329353409,1718277034818,-168.28641572,0.00024109,2]
[329353410,1718277034834,-258.39788962,0.00024109,2]
[329353411,1718277034851,-152.8829837,0.00024109,2]
[329353412,1718277034864,-402.90446117,0.00024109,2]
[329353413,1718277034890,-500.0,0.00024109,2]
[329353414,1718277034911,-306.40573513,0.00024109,2]
[329353415,1718277034925,-512.96706638,0.00024109,2]
[329353416,1718277034960,-293.6395272,0.00024109,2]
[329353417,1718277034988,-257.90925916,0.00024109,2]
[329353418,1718277035014,-286.15380932,0.00024109,2]
[329353419,1718277035033,-346.18432793,0.00024109,2]
[329353420,1718277035054,-191.96,0.00024109,2]
[329353421,1718277035088,-277.28858241,0.00024109,2]
[329353422,1718277035116,-500.0,0.00024109,2]
[329353423,1718277035129,-413.58012528,0.00024109,2]
[329353424,1718277035142,-439.80805676,0.00024109,2]
[329353425,1718277035154,-500.0,0.00024109,2]
[329353426,1718277035165,-500.0,0.00024109,2]
[329353427,1718277035179,-412.95965605,0.00024109,2]
[329353428,1718277035193,-500.0,0.00024109,2]
[329353429,1718277035218,-408.68157349,0.00024109,2]
[329353430,1718277035229,-500.0,0.00024109,2]
[329353431,1718277035243,-500.0,0.00024109,2]
[329353432,1718277035258,-500.0,0.00024109,2]
[329353433,1718277035270,-469.48866285,0.00024109,2]
[329353434,1718277035286,-500.0,0.00024109,2]
[329353435,1718277035305,-387.32862899,0.00024109,2]
[329353436,1718277035318,-472.35401766,0.00024109,2]
[329353437,1718277035329,-425.26069009,0.00024109,2]
[329353438,1718277035342,-500.0,0.00024109,2]
[329353439,1718277035358,-410.95153315,0.00024109,2]
[329353440,1718277035373,-500.0,0.00024109,2]
[329353441,1718277035395,-159.79092522,0.00024109,2]
[329353442,1718277035406,-301.86286301,0.00024109,2]
[329353443,1718277035419,-500.0,0.00024109,2]
[329353444,1718277035433,-373.54339236,0.00024109,2]
[329353445,1718277035451,-444.66838777,0.00024109,2]
[329353446,1718277035461,-323.46556626,0.00024109,2]
[329353447,1718277035480,-503.40367197,0.00024109,2]
[329353448,1718277035497,-500.0,0.00024109,2]
[329353449,1718277035508,-298.3518818,0.00024109,2]
[329353450,1718277035524,-225.61230046,0.00024109,2]
[329353451,1718277035548,-465.4155438,0.00024109,2]
[329353452,1718277035559,-359.16953377,0.00024109,2]
[329353453,1718277035579,-500.0,0.00024109,2]
[329353454,1718277035589,-353.56119388,0.00024109,2]
[329353455,1718277035600,-183.6414649,0.00024109,2]
[329353456,1718277035624,-426.71335263,0.00024109,2]
[329353457,1718277035639,-500.0,0.00024109,2]
[329353458,1718277035651,-280.0022803,0.00024109,2]
[329353459,1718277035668,-582.05126239,0.00024109,2]
[329353460,1718277035682,-475.43985892,0.00024109,2]
[329353461,1718277035693,-383.4032195,0.00024109,2]
[329353462,1718277035703,-195.5702395,0.00024109,2]
[329353463,1718277035713,-500.0,0.00024109,2]
[329353464,1718277035724,-500.0,0.00024109,2]
[329353465,1718277035736,-244.31651207,0.00024109,2]
[329353466,1718277035747,-280.34193573,0.00024109,2]
[329353467,1718277035757,-500.0,0.00024109,2]
[329353468,1718277035769,-159.59903501,0.00024109,2]
[329353469,1718277035781,-500.0,0.00024109,2]
[329353470,1718277035796,-500.0,0.00024109,2]
[329353471,1718277035812,-500.0,0.00024109,2]
[329353472,1718277035832,-243.49743855,0.00024109,2]
[329353473,1718277035850,-506.10132284,0.00024109,2]
[329353474,1718277035861,-500.0,0.00024109,2]
[329353475,1718277035872,-500.0,0.00024109,2]
[329353476,1718277035891,-200.17956803,0.00024109,2]
[329353477,1718277035905,-500.0,0.00024109,2]
[329353478,1718277035923,-500.0,0.00024109,2]
[329353479,1718277035940,-168.62824834,0.00024109,2]
[329353480,1718277035965,-500.0,0.00024109,2]
[329353481,1718277035983,-501.03765744,0.00024109,2]
[329353482,1718277035994,-500.0,0.00024109,2]
[329353483,1718277036007,-551.88571727,0.00024109,2]
[329353484,1718277036027,-454.05999521,0.00024109,2]
[329353485,1718277036046,-192.20983498,0.00024109,2]
[329353486,1718277036063,-506.8426892,0.00024109,2]
[329353487,1718277036101,-510.48899375,0.00024109,2]
[329353488,1718277036124,-500.0,0.00024109,2]
[329353489,1718277036140,-500.0,0.00024109,2]
[329353490,1718277036160,-473.55772757,0.00024109,2]
[329353491,1718277036179,-500.0,0.00024109,2]
[329353492,1718277036195,-500.0,0.00024109,2]
[329353493,1718277036219,-500.0,0.00024109,2]
[329353494,1718277036230,-353.39,0.00024109,2]
[329353495,1718277036243,-504.87138516,0.00024109,2]
[329353496,1718277036259,-500.0,0.00024109,2]
[329353497,1718277036270,-500.0,0.00024109,2]
[329353498,1718277036283,-500.0,0.00024109,2]
[329353499,1718277036294,-409.17783833,0.00024109,2]
[329353500,1718277036306,-500.0,0.00024109,2]
[329353501,1718277036318,-502.99366863,0.00024109,2]
[329353502,1718277036329,-500.0,0.00024109,2]
[329353503,1718277036341,-500.0,0.00024109,2]
[329353504,1718277036357,-500.0,0.00024109,2]
[329353505,1718277036371,-500.0,0.00024109,2]
[329353506,1718277036387,-856.73,0.00024109,2]
[329353507,1718277036404,-500.0,0.00024109,2]
[329353508,1718277036426,-500.0,0.00024109,2]
[329353509,1718277036486,-500.0,0.00024109,2]
[329353510,1718277036539,-500.0,0.00024109,2]
[329353511,1718277036556,-500.0,0.00024109,2]
[329353512,1718277036580,-500.0,0.00024109,2]
[329353513,1718277036615,-419.99452859,0.00024109,2]
[329353514,1718277036631,-500.0,0.00024109,2]
[329353515,1718277036643,-500.0,0.00024109,2]
[329353516,1718277036660,-500.0,0.00024109,2]
[329353517,1718277036673,-500.0,0.00024109,2]
[329353518,1718277036701,-500.0,0.00024109,2]
[329353519,1718277036711,-503.68000376,0.00024109,2]
[329353520,1718277036726,-500.0,0.00024109,2]
[329353521,1718277036743,-579.10097411,0.00024109,2]
[329353522,1718277036760,-500.0,0.00024109,2]
[329353523,1718277036780,-500.0,0.00024109,2]
[329353524,1718277036808,-500.0,0.00024109,2]
[329353525,1718277036831,-500.0,0.00024109,2]
[329353526,1718277036844,-500.0,0.00024109,2]
[329353527,1718277036879,-500.0,0.00024109,2]
[329353528,1718277036915,-511.92446197,0.00024109,2]
[329353529,1718277036938,-500.0,0.00024109,2]
[329353530,1718277036981,-500.0,0.00024109,2]
[329353531,1718277036993,-500.0,0.00024109,2]
[329353532,1718277037005,-500.0,0.00024109,2]
[329353533,1718277037017,-500.0,0.00024109,2]
[329353534,1718277037037,-500.0,0.00024109,2]
[329353535,1718277037053,-500.0,0.00024109,2]
[329353536,1718277037074,-500.0,0.00024109,2]
[329353537,1718277037086,-500.0,0.00024109,2]
[329353538,1718277037099,-500.0,0.00024109,2]
[329353539,1718277037117,-500.0,0.00024109,2]
[329353540,1718277037130,-180.0,0.0002423,2]
[329353541,1718277037142,-390.304093,0.000243,2]
[329353542,1718277037160,-500.0,0.00024303,2]
[329353543,1718277037190,-1000.0,0.00024313,2]
[329353544,1718277037233,-206.94582887,0.00024382,2]
[329353545,1718277037248,-500.0,0.00024382,2]
[329353546,1718277037263,-505.92815425,0.00024382,2]
[329353547,1718277037295,-1183.25,0.00024382,2]
[329353548,1718277037312,-500.0,0.00024382,2]
[329353549,1718277037336,-704.44,0.00024382,2]
[329353550,1718277037348,-500.0,0.00024382,2]
[329353551,1718277037368,-5852.16,0.00024382,2]
[329353552,1718277037394,-2891.73,0.00024382,2]
[329353553,1718277037417,-500.0,0.00024382,2]
[329353554,1718277037441,-1318.26,0.00024382,2]
[329353555,1718277037458,-492.18616672,0.00024382,2]
[329353556,1718277037471,-2337.62,0.00024382,2]
[329353557,1718277037487,-502.87960186,0.00024382,2]
[329353558,1718277037506,-1185.47,0.00024382,2]
[329353559,1718277037522,-500.0,0.00024382,2]
[329353560,1718277037535,-1475.74,0.00024382,2]
[329353561,1718277037550,-572.37,0.00024382,2]
[329353562,1718277037562,-500.0,0.00024382,2]
[329353563,1718277037574,-511.02083748,0.00024383,2]
[329353564,1718277037587,-500.0,0.00024383,2]
[329353565,1718277037603,-234.65183858,0.00024383,2]
[329353566,1718277037614,-597.29007634,0.00024383,2]
[329353567,1718277037627,-500.0,0.00024383,2]
[329353568,1718277037641,-500.0,0.00024383,2]
[329353569,1718277037652,-502.12715046,0.00024383,2]
[329353570,1718277037665,-302.76133694,0.00024383,2]
[329353571,1718277037680,-500.0,0.00024383,2]
[329353572,1718277037700,-500.0,0.00024383,2]
[329353573,1718277037711,-500.0,0.00024383,2]
[329353574,1718277037725,-500.0,0.00024383,2]
[329353575,1718277037746,-500.0,0.00024383,2]
[329353576,1718277037762,-500.0,0.00024383,2]
[329353577,1718277037777,-500.0,0.00024383,2]
[329353578,1718277037903,-500.0,0.00024383,2]
[329353579,1718277037920,-559.73,0.00024383,2]
[329353581,1718277037937,-500.0,0.00024383,2]
[329353582,1718277037949,-449.28795447,0.00024383,2]
[329353584,1718277037971,-500.0,0.00024383,2]
[329353586,1718277037992,-500.0,0.00024383,2]
[329353588,1718277038014,-500.0,0.00024383,2]
[329353589,1718277038027,-306.83893237,0.00024383,2]
[329353591,1718277038048,-500.0,0.00024383,2]
[329353593,1718277038061,-500.0,0.00024383,2]
[329353596,1718277038083,-500.0,0.00024383,2]
[329353600,1718277038102,-500.0,0.00024383,2]
[329353602,1718277038121,-500.0,0.00024383,2]
[329353603,1718277038133,-389.17823746,0.00024383,2]
[329353604,1718277038145,-500.0,0.00024383,2]
[329353605,1718277038156,-500.0,0.00024383,2]
[329353606,1718277038184,-500.0,0.00024383,2]
[329353607,1718277038197,-405.93718948,0.00024383,2]
[329353608,1718277038230,-500.0,0.00024383,2]
[329353609,1718277038244,-593.66099548,0.00024383,2]
[329353610,1718277038265,-500.0,0.00024383,2]
[329353611,1718277038280,-500.0,0.00024383,2]
[329353612,1718277038304,-500.0,0.00024383,2]
[329353613,1718277038322,-500.0,0.00024383,2]
[329353614,1718277038334,-500.0,0.00024383,2]
[329353615,1718277038346,-500.0,0.00024383,2]
[329353616,1718277038358,-500.0,0.00024383,2]
[329353617,1718277038391,-500.0,0.00024383,2]
[329353618,1718277038402,-856.73,0.00024383,2]
[329353619,1718277038420,-500.0,0.00024383,2]
[329353620,1718277038446,-500.0,0.00024383,2]
[329353621,1718277038476,-533.87270159,0.00024383,2]
[329353622,1718277038496,-500.0,0.00024383,2]
[329353623,1718277038508,-500.0,0.00024383,2]
[329353624,1718277038538,-500.0,0.00024383,2]
[329353625,1718277038562,-500.0,0.00024383,2]
[329353626,1718277038575,-500.0,0.00024383,2]
[329353627,1718277038595,-500.0,0.00024383,2]
[329353628,1718277038607,-500.0,0.00024383,2]
[329353629,1718277038618,-500.0,0.00024383,2]
[329353630,1718277038628,-500.0,0.00024383,2]
[329353631,1718277038639,-500.0,0.00024383,2]
[329353632,1718277038651,-500.0,0.00024383,2]
[329353633,1718277038675,-500.0,0.00024383,2]
[329353634,1718277038690,-500.0,0.00024383,2]
[329353635,1718277038702,-500.0,0.00024383,2]
[329353636,1718277038718,-502.22255909,0.00024383,2]
[329353637,1718277038732,-471.94613034,0.00024383,2]
[329353638,1718277038749,-500.0,0.00024383,2]
[329353639,1718277038762,-618.72677981,0.00024383,2]
[329353640,1718277038781,-500.0,0.00024383,2]
[329353641,1718277038792,-500.0,0.00024383,2]
[329353642,1718277038807,-500.0,0.00024383,2]
[329353643,1718277038819,-500.0,0.00024383,2]
[329353644,1718277038834,-500.0,0.00024383,2]
[329353645,1718277038848,-500.0,0.00024383,2]
[329353646,1718277038864,-500.0,0.00024383,2]
[329353647,1718277038879,-500.0,0.00024383,2]
[329353648,1718277038893,-152.13,0.00024384,2]
[329353649,1718277038905,-156.3,0.00024384,2]
[329353650,1718277038918,-6772.9492,0.00024399,2]
[329353651,1718277038940,-3796.8372,0.000244,2]
[329353652,1718277038956,-7784.3295,0.000244,2]
[329353653,1718277038986,-695.20998321,0.000244,2]
[329353654,1718277039009,-200.0,0.000244,8]
[329353655,1718277039035,-161.97625999,0.000244,2]
[329353656,1718277039081,-157.29516,0.000244,2]
[329353657,1718277039101,-628.5,0.00024496,2]
[329353658,1718277039117,-500.0,0.00024496,2]
[329353659,1718277039147,-877.35,0.00024496,2]
[329353660,1718277039173,-1070.7,0.00024496,2]
[329353661,1718277039211,-500.0,0.00024496,2]
[329353662,1718277039229,-505.83683547,0.00024496,2]
[329353663,1718277039243,-871.84,0.00024496,2]
[329353664,1718277039261,-1196.79,0.00024496,2]
[329353665,1718277039278,-748.9,0.00024496,2]
[329353666,1718277039290,-2448.85,0.00024496,2]
[329353667,1718277039309,-1584.05,0.00024496,2]
[329353668,1718277039331,-875.77,0.00024496,2]
[329353669,1718277039346,-896.33,0.00024496,2]
[329353670,1718277039376,-1393.21,0.00024496,2]
[329353671,1718277039402,-712.29,0.00024496,2]
[329353672,1718277039435,-3021.74,0.00024496,2]
[329353673,1718277039457,-2955.13,0.00024496,2]
[329353674,1718277039482,-1592.21,0.00024496,2]
[329353675,1718277039494,-1489.31,0.00024496,2]
[329353676,1718277039516,-1351.15,0.00024496,2]
[329353677,1718277039564,-1841.9,0.00024496,2]
[329353678,1718277039578,-1097.22,0.00024496,2]
[329353679,1718277039606,-500.0,0.00024496,2]
[329353680,1718277039632,-1562.15,0.00024496,2]
[329353681,1718277039643,-500.0,0.00024496,2]
[329353682,1718277039664,-500.0,0.00024496,2]
[329353683,1718277039676,-500.0,0.00024496,2]
[329353684,1718277039705,-500.0,0.00024496,2]
[329353685,1718277039720,-658.78,0.00024497,2]
[329353686,1718277039763,-787.23,0.00024497,2]
[329353687,1718277039778,-1665.89,0.00024497,2]
[329353688,1718277039798,-1074.6,0.00024497,2]
[329353689,1718277039812,-16680.58813153,0.00024497,2]
[329353691,1718277040056,-10533.13156856,0.00024497,2]
[329353692,1718277041667,-500.0,0.00024496,2]
[329353693,1718277041686,-500.0,0.00024496,2]
[329353694,1718277041699,-500.0,0.00024496,2]
[329353695,1718277041715,-4143.59029991,0.00024497,2]
[329353696,1718277041732,-1670.36,0.00024497,2]
[329353697,1718277041744,-1382.88,0.00024497,2]
[329353698,1718277041761,-739.94,0.00024497,2]
[329353699,1718277041776,-892.4,0.00024497,2]
[329353700,1718277041792,-268.81149281,0.00024497,2]
[329353701,1718277041848,-916.08850719,0.00024497,2]
[329353702,1718277041871,-585.64,0.00024497,2]
[329353703,1718277041888,-929.82,0.00024497,2]
[329353704,1718277041911,-400.38430584,0.00024497,2]
[329353705,1718277041956,-1230.8703491,0.00024497,2]
[329353706,1718277041971,-1932.70534506,0.00024497,2]
[329353707,1718277041984,-623.27,0.00024497,2]
[329353708,1718277042008,-1120.48,0.00024497,2]
[329353709,1718277042024,-150.0,0.00024498,10]
[329353710,1718277042036,-150.0,0.00024498,10]
[329353711,1718277042057,-172.41954352,0.00024498,2]
[329353712,1718277042070,-2109.28400397,0.00024498,2]
[329353713,1718277042094,-179.44051199,0.00024498,2]
[329353714,1718277042111,-156.02082366,0.00024498,2]
[329353715,1718277042132,-466.59615473,0.00024498,2]
[329353716,1718277042177,-194.38010912,0.00024498,2]
[329353717,1718277042234,-429.8525504,0.00024498,2]
[329353718,1718277042248,-436.69232455,0.00024498,2]
[329353719,1718277042270,-3017.04643973,0.00024498,2]
[329353720,1718277042299,-267.36018945,0.00024498,2]
[329353721,1718277042311,-1059.81697528,0.00024498,2]
[329353722,1718277042325,-155.31528203,0.00024498,2]
[329353723,1718277042336,-1053.27219709,0.00024498,2]
[329353724,1718277042347,-500.0,0.00024498,2]
[329353725,1718277042361,-500.0,0.00024498,2]
[329353726,1718277042374,-530.05920791,0.00024498,2]
[329353727,1718277042385,-500.0,0.00024498,2]
[329353728,1718277042403,-500.0,0.00024498,2]
[329353729,1718277042416,-500.0,0.00024498,2]
[329353730,1718277042430,-500.0,0.00024498,2]
[329353731,1718277042446,-500.0,0.00024498,2]
[329353732,1718277042465,-500.0,0.00024498,2]
[329353733,1718277042482,-500.0,0.00024498,2]
[329353734,1718277042506,-500.0,0.00024498,2]
[329353735,1718277042517,-500.0,0.00024498,2]
[329353736,1718277042533,-529.73426081,0.00024498,2]
[329353737,1718277042549,-500.0,0.00024498,2]
[329353738,1718277042560,-609.74428351,0.00024498,2]
[329353739,1718277042577,-500.0,0.00024498,2]
[329353740,1718277042605,-500.0,0.00024498,2]
[329353741,1718277042628,-500.0,0.00024498,2]
[329353742,1718277042653,-500.0,0.00024498,2]
[329353743,1718277042671,-500.0,0.00024498,2]
[329353744,1718277042686,-500.0,0.00024498,2]
[329353745,1718277042709,-500.0,0.00024498,2]
[329353746,1718277042732,-500.0,0.00024498,2]
[329353747,1718277042745,-608.64876011,0.00024498,2]
[329353748,1718277042775,-500.0,0.00024498,2]
[329353750,1718277042790,-500.0,0.00024498,2]
[329353751,1718277042814,-500.0,0.00024498,2]
[329353752,1718277042844,-500.0,0.00024498,2]
[329353753,1718277042870,-314.15563279,0.00024498,2]
[329353754,1718277042893,-500.0,0.00024498,2]
[329353755,1718277042910,-506.56269805,0.00024498,2]
[329353756,1718277042938,-500.0,0.00024498,2]
[329353757,1718277042952,-500.0,0.00024498,2]
[329353758,1718277042974,-500.0,0.00024498,2]
[329353759,1718277043002,-500.0,0.00024498,2]
[329353760,1718277043013,-500.0,0.00024498,2]
[329353761,1718277043029,-500.0,0.00024498,2]
[329353762,1718277043049,-500.0,0.00024498,2]
[329353763,1718277043063,-500.0,0.00024498,2]
[329353764,1718277043076,-345.75659702,0.00024498,2]
[329353765,1718277043089,-500.0,0.00024498,2]
[329353766,1718277043106,-500.0,0.00024498,2]
[329353767,1718277043124,-500.0,0.00024498,2]
[329353768,1718277043136,-500.0,0.00024498,2]
[329353769,1718277043149,-500.0,0.00024498,2]
[329353770,1718277043161,-500.0,0.00024498,2]
[329353771,1718277043175,-500.0,0.00024498,2]
[329353772,1718277043200,-500.0,0.00024498,2]
[329353773,1718277043222,-500.0,0.00024498,2]
[329353774,1718277043235,-500.0,0.00024498,2]
[329353775,1718277043258,-500.0,0.00024498,2]
[329353776,1718277043273,-500.0,0.00024498,2]
[329353777,1718277043305,-568.14117772,0.00024498,2]
[329353778,1718277043319,-610.06518915,0.00024498,2]
[329353779,1718277043344,-500.0,0.00024498,2]
[329353780,1718277043380,-500.0,0.00024498,2]
[329353781,1718277043404,-500.0,0.00024498,2]
[329353782,1718277043415,-500.0,0.00024498,2]
[329353783,1718277043438,-500.0,0.00024498,2]
[329353784,1718277043482,-653.07,0.00024498,2]
[329353785,1718277043497,-500.0,0.00024498,2]
[329353786,1718277043521,-500.0,0.00024498,2]
[329353787,1718277043535,-500.0,0.00024498,2]
[329353788,1718277043549,-510.96853894,0.00024498,2]
[329353789,1718277043561,-500.0,0.00024498,2]
[329353790,1718277043583,-500.0,0.00024498,2]
[329353791,1718277043615,-500.0,0.00024498,2]
[329353792,1718277043629,-500.0,0.00024498,2]
[329353793,1718277043640,-557.95162542,0.00024498,2]
[329353794,1718277043651,-294.09371145,0.00024498,2]
[329353795,1718277043661,-500.0,0.00024498,2]
[329353796,1718277043680,-500.0,0.00024498,2]
[329353797,1718277043698,-500.0,0.00024498,2]
[329353798,1718277043722,-500.0,0.00024498,2]
[329353799,1718277043746,-500.0,0.00024498,2]
[329353800,1718277043789,-500.0,0.00024498,2]
[329353801,1718277043809,-1199.36,0.00024498,2]
[329353802,1718277043859,-500.0,0.00024498,2]
[329353803,1718277043874,-500.0,0.00024498,2]
[329353804,1718277043888,-500.0,0.00024498,2]
[329353805,1718277043923,-324.29325453,0.00024498,2]
[329353806,1718277044355,-175.70674547,0.00024498,2]
[329353807,1718277044383,-123.43611281,0.00024498,2]
[329353808,1718277044463,-376.56388719,0.00024498,2]
[329353809,1718277044491,-162.43994425,0.00024498,2]
[329353810,1718277044527,-337.56005575,0.00024498,2]
[329353811,1718277044559,-500.0,0.00024498,2]
[329353812,1718277044569,-476.32805534,0.00024498,2]
[329353813,1718277044596,-500.0,0.00024498,2]
[329353814,1718277044608,-500.0,0.00024498,2]
[329353815,1718277044619,-500.0,0.00024498,2]
[329353816,1718277044640,-500.0,0.00024498,2]
[329353817,1718277044661,-500.0,0.00024498,2]
[329353818,1718277044688,-500.0,0.00024498,2]
[329353819,1718277044709,-500.0,0.00024498,2]
[329353820,1718277044726,-500.0,0.00024498,2]
[329353821,1718277044750,-500.0,0.00024498,2]
[329353822,1718277044780,-500.0,0.00024498,2]
[329353823,1718277044798,-500.0,0.00024498,2]
[329353824,1718277044813,-500.0,0.00024498,2]
[329353825,1718277044840,-500.0,0.00024498,2]
[329353826,1718277044858,-500.0,0.00024498,2]
[329353827,1718277044879,-500.0,0.00024498,2]
[329353828,1718277044902,-619.16213466,0.00024498,2]
[329353829,1718277044915,-500.0,0.00024498,2]
[329353830,1718277044929,-760.53,0.00024498,2]
[329353831,1718277044949,-157.22931112,0.00024498,2]
[329353832,1718277044966,-500.0,0.00024498,2]
[329353833,1718277044979,-527.22397481,0.00024498,2]
[329353834,1718277044994,-255.81432945,0.00024498,2]
[329353837,1718277045258,-244.18567055,0.00024498,2]
[329353838,1718277045275,-452.70149527,0.00024498,2]
[329353839,1718277045550,-47.29850473,0.00024498,2]
[329353840,1718277045583,-500.0,0.00024498,2]
[329353841,1718277045600,-500.0,0.00024498,2]
[329353842,1718277045614,-500.0,0.00024498,2]
[329353843,1718277045631,-500.0,0.00024498,2]
[329353844,1718277045642,-140.89502075,0.00024498,2]
[329353845,1718277045659,-362.64813286,0.00024498,2]
[329353846,1718277045677,-500.0,0.00024498,2]
[329353847,1718277045690,-178.52334383,0.00024498,2]
[329353849,1718277045722,-321.47665617,0.00024498,2]
[329353851,1718277045736,-32.82334206,0.00024498,2]
[329353857,1718277046280,-375.38893534,0.00024496,2]
[329353858,1718277046296,-124.61106466,0.00024496,2]
[329353859,1718277046309,-467.17665794,0.00024498,2]
[329353860,1718277046326,-500.0,0.00024498,2]
[329353861,1718277046340,-500.0,0.00024498,2]
[329353862,1718277046357,-500.0,0.00024498,2]
[329353863,1718277046368,-500.0,0.00024498,2]
[329353864,1718277046385,-500.0,0.00024498,2]
[329353865,1718277046405,-500.0,0.00024498,2]
[329353866,1718277046427,-500.0,0.00024498,2]
[329353867,1718277046448,-350.3715133,0.00024498,2]
[329353868,1718277046463,-500.0,0.00024498,2]
[329353869,1718277046476,-314.11203391,0.00024498,2]
[329353870,1718277046489,-500.0,0.00024498,2]
[329353871,1718277046519,-500.0,0.00024498,2]
[329353872,1718277046530,-1016.21,0.00024498,2]
[329353873,1718277046545,-500.0,0.00024498,2]
[329353874,1718277046556,-500.0,0.00024498,2]
[329353875,1718277046567,-500.0,0.00024498,2]
[329353876,1718277046580,-500.0,0.00024498,2]
[329353877,1718277046614,-500.0,0.00024498,2]
[329353878,1718277046627,-500.0,0.00024498,2]
[329353879,1718277046647,-500.0,0.00024498,2]
[329353880,1718277046669,-500.0,0.00024498,2]
[329353881,1718277046684,-803.45,0.00024498,2]
[329353882,1718277046703,-500.0,0.00024498,2]
[329353883,1718277046714,-156.56732617,0.00024498,2]
[329353884,1718277046726,-500.0,0.00024498,2]
[329353885,1718277046738,-264.7339945,0.00024498,2]
[329353886,1718277046751,-500.0,0.00024498,2]
[329353887,1718277046899,-500.0,0.00024498,2]
[329353888,1718277046922,-500.0,0.00024498,2]
[329353889,1718277046952,-269.01278516,0.00024498,2]
[329353890,1718277046965,-442.43866449,0.00024498,2]
[329353891,1718277046979,-500.0,0.00024498,2]
[329353892,1718277046997,-500.0,0.00024498,2]
[329353893,1718277047028,-273.24587896,0.00024498,2]
[329353894,1718277047061,-397.85260131,0.00024498,2]
[329353895,1718277047073,-500.0,0.00024498,2]
[329353896,1718277047092,-276.97867974,0.00024498,2]
[329353897,1718277047121,-500.0,0.00024498,2]
[329353898,1718277047150,-520.64674045,0.00024498,2]
[329353899,1718277047162,-189.99553673,0.00024498,2]
[329353900,1718277047185,-503.23185789,0.00024498,2]
[329353901,1718277047224,-913.83,0.00024498,2]
[329353902,1718277047236,-505.11424407,0.00024498,2]
[329353903,1718277047253,-193.87800919,0.00024498,2]
[329353904,1718277047273,-500.0,0.00024498,2]
[329353905,1718277047293,-303.40547349,0.00024498,2]
[329353906,1718277047310,-500.0,0.00024498,2]
[329353907,1718277047339,-500.0,0.00024498,2]
[329353908,1718277047362,-500.0,0.00024498,2]
[329353909,1718277047376,-509.9498593,0.00024498,2]
[329353910,1718277047387,-414.08718254,0.00024498,2]
[329353911,1718277047406,-868.93,0.00024498,2]
[329353912,1718277047420,-511.97053086,0.00024498,2]
[329353913,1718277047456,-500.0,0.00024498,2]
[329353914,1718277047484,-878.65,0.00024498,2]
[329353915,1718277047510,-195.84068679,0.00024498,2]
[329353916,1718277047527,-2296.66,0.00024498,2]
[329353917,1718277047544,-500.0,0.00024498,2]
[329353918,1718277047559,-500.0,0.00024498,2]
[329353919,1718277047573,-762.45,0.00024498,2]
[329353920,1718277047591,-631.01702471,0.00024498,2]